Cogmind - Beta 15 @@@ ROGUE MODE // 2025.07.25 @ 20:52:43 Player: AshCrow Result: Destroyed by VT-IXN(R) with Subdweller Machine Gun Performance ------------- Evolutions (0) 0 Regions Visited (3) 600 Robots Destroyed (23) 115 Value Destroyed (587) 587 Prototype IDs (0) 0 Alien Tech Used (0) 0 Bonus (0) 0 TOTAL SCORE: 1302 Bonus ------- None Cogmind --------- Core Integrity 0/250 Matter 186/300 Energy 250/250 System Corruption 0% Temperature Cool (0) Movement Core (250) Ox4 Location -10/Subcaves Parts ------- > --- POWER (1) -------- Ion Engine > --- PROPULSION (2) --- (None) > --- UTILITY (2) ------ Small Storage Unit Targeting Computer > --- WEAPON (2) ------- Light Assault Rifle Barrage Gun > --- INVENTORY (8) ---- Light Ion Engine Subdweller Power Source Hacking Suite Riot Gun Small Laser Datajack Mining Laser Peak State ------------ > --- POWER ------------ Ion Engine > --- PROPULSION ------- Light Treads Light Treads > --- UTILITY ---------- Small Storage Unit Targeting Computer > --- WEAPON ----------- Riot Gun Barrage Gun > --- INVENTORY -------- Light Ion Engine Subdweller Power Source Hacking Suite Small Laser Small Laser Light Assault Rifle Grenade Launcher Datajack [Rating: 12] Favorites ----------- Power Ion Engine Engine Ion Engine Propulsion Light Treads Treads Light Treads Utility Small Storage Unit Storage Small Storage Unit Processor Targeting Computer Weapon Light Assault Rifle Energy Gun Medium Laser Ballistic Gun Light Assault Rifle Launcher Grenade Launcher Special Weapon Mining Laser Special Melee Weapon Datajack Build | -11 -10 -10 -10 ------- Run | Yrd Mat Min Sub Slots Evolved . | . . . . Power . | . . . . Propulsion . | . . . . Utility . | . . . . Weapon . | . . . . Parts Attached 19 | 6 8 2 3 Power 3 | 1 2 . . Engine 3 | 1 2 . . Core . | . . . . Reactor . | . . . . Propulsion 2 | 2 . . . Treads 2 | 2 . . . Leg . | . . . . Wheel . | . . . . Hover . | . . . . Flight . | . . . . Utility 2 | 1 1 . . Device . | . . . . Storage 1 | 1 . . . Processor 1 | . 1 . . Hackware . | . . . . Protection . | . . . . Artifact . | . . . . Weapon 12 | 2 5 2 3 Energy Gun 5 | 1 2 1 1 Energy Cannon . | . . . . Ballistic Gun 4 | 1 2 . 1 Ballistic Cannon . | . . . . Launcher 1 | . . . 1 Special Weapon 1 | . . 1 . Impact Weapon . | . . . . Slashing Weapon . | . . . . Piercing Weapon . | . . . . Special Melee Weapon 1 | . 1 . . Unidentified Prototypes . | . . . . Parts Lost 4 | . 1 . 3 Power . | . . . . Propulsion 2 | . . . 2 Utility . | . . . . Weapon 2 | . 1 . 1 Highest Loss Streak 3 | . 1 . 3 To Critical Strikes . | . . . . Average Backups 6 | 1 6 7 7 Power 1 | . 1 2 2 Propulsion . | . . . . Utility 1 | . 1 1 1 Weapon 3 | . 2 3 3 Tool/Special . | . . . . Unused Backups 5 | . 1 1 3 Power 2 | . . . 2 Propulsion . | . . . . Utility 3 | . 1 1 1 Weapon . | . . . . Tool/Special . | . . . . Average Slot Usage (%) 92 | . 89 100 98 Engine 11 | . 10 14 14 Treads 27 | . 28 28 26 Storage 14 | . 14 14 14 Processor 9 | . 7 14 14 Energy Gun 12 | . 13 5 11 Ballistic Gun 14 | . 13 14 14 Special Weapon 1 | . . 8 2 Peak Build Rating 12 | 6 8 8 12 Average Rating 7 | 4 6 7 8 On Entrance 5 | . 6 8 8 Naked Turns . | . . . . Heaviest Build 16 | 12 14 12 16 Greatest Support 40 | 40 40 40 40 Greatest Overweight (x) 4 | . . . 4 Average Overweight (x) . | . . . . Largest Inventory Capacity 8 | 8 8 8 8 Average Capacity 7 | 6 8 8 8 Most Carried 8 | 2 8 8 8 Average Carried 6 | 1 6 7 7 Final Capacity 8 | 8 8 8 8 Final Carried 8 | 2 8 8 7 Class Distribution -------------------- 100% | Mutant Dominant Class ---------------- Mutant | -10/Materials Mutant | -10/Mines Mutant | -10/Subcaves Resources | -11 -10 -10 -10 ----------- Run | Yrd Mat Min Sub Matter Collected 502 | 251 206 . 45 Remotely . | . . . . Salvage Created 730 | . 580 . 150 Parts 52 | . 36 . 16 Haulers Intercepted . | . . . . Recyclers Shooed 3 | . 3 . . Parts Field Recycled . | . . . . Retrieved Matter . | . . . . Parts Self-Destructed 4 | . . . 4 Prevented . | . . . . Kills | -11 -10 -10 -10 ------- Run | Yrd Mat Min Sub Combat Hostiles Destroyed 19 | . 14 . 5 Guns 19 | . 14 . 5 Classes Destroyed 5 | . 4 . 1 Recycler 1 | . 1 . . Operator 3 | . 3 . . Swarmer 6 | . 4 . 2 Grunt 10 | . 10 . . Subdweller 3 | . . . 3 Best Kill Streak 3 | . 3 . 2 Combat Bots Only 2 | . 2 . 2 Max Kills in Single Turn 2 | . 2 . 1 Gunslinging . | . . . . Exploded . | . . . . Melee . | . . . . Uniques/NPCs Destroyed . | . . . . Combat | -11 -10 -10 -10 -------- Run | Yrd Mat Min Sub Hostile Shots Fired 99 | . 73 . 26 Missed 35 | . 27 . 8 Hits 64 | . 46 . 18 Projectile 64 | . 46 . 18 AOE 3 | . . . 3 Critical Strikes 1 | . . . 1 Damage Taken 935 | . 483 . 452 Core 250 | . 42 . 208 Absorbed by Shields . | . . . . Core Remaining (%) 100 | 100 . . . Volleys Fired 88 | . 54 1 33 Largest 2 | . 2 1 2 Hottest 100 | . 70 100 100 Shots Fired 140 | . 98 1 41 Gun 128 | . 98 . 30 Cannon . | . . . . Launcher . | . . . . Special 12 | . . 1 11 Kinetic 84 | . 54 . 30 Thermal 56 | . 44 1 11 Explosive . | . . . . Electromagnetic . | . . . . Robot Hit Streak 14 | . 14 . 8 Robot Miss Streak 3 | . 3 . 2 Penetration Max . | . . . . Secondary Targets 1 | . 1 . . Max Gunslinging Chain 1 | . 1 . . Shots Hit Robots 91 | . 69 . 22 Core Hits 41 | . 32 . 9 Critical Kills . | . . . . Critical Parts Destroyed 1 | . 1 . . Critical Strikes 3 | . 3 . . Burn 2 | . 2 . . Destroy 1 | . 1 . . Melee Attacks 2 | . 2 . . Impact . | . . . . Slashing . | . . . . Piercing . | . . . . Sneak Attacks 2 | . 2 . . Combat Hostiles . | . . . . Follow-up Attacks . | . . . . Damage Inflicted 1071 | . 778 . 293 Guns 1065 | . 772 . 293 Cannons . | . . . . Explosions . | . . . . Melee . | . . . . Ramming 6 | . 6 . . Kinetic 719 | . 426 . 293 Thermal 346 | . 346 . . Explosive . | . . . . Electromagnetic . | . . . . Impact . | . . . . Slashing . | . . . . Piercing . | . . . . Highest Corruption . | . . . . Average Corruption . | . . . . Corruption Purged . | . . . . Corruption Blocked . | . . . . Overload Shots . | . . . . Overflow Damage . | . . . . Projectiles . | . . . . Explosions . | . . . . Melee . | . . . . Knockbacks 1 | . 1 . . Impact 1 | . 1 . . Kinetic . | . . . . Secondary . | . . . . Self-Inflicted Damage . | . . . . Shots . | . . . . Rammed 2 | . 2 . . Targets Rammed 3 | . 3 . . Kicked . | . . . . Crushed 1 | . 1 . . Highest Temperature 64 | . 64 20 . Average Temperature 17 | . 17 10 . Received Heat Transfer 180 | . 180 . . Siege Activations . | . . . . Martial Activations . | . . . . Shielding Activations . | . . . . Robots Disrupted . | . . . . Combat Hostiles . | . . . . Robots Corrupted . | . . . . Combat Hostiles . | . . . . Parts Fried . | . . . . Impact Corruptions . | . . . . Robots Melted . | . . . . Combat Hostiles . | . . . . Parts Melted 1 | . 1 . . Heat Transferred 1113 | . 1113 . . Parts Sabotaged . | . . . . Parts Stolen . | . . . . Parts Stripped . | . . . . Power Chain Reactions . | . . . . Alert | -11 -10 -10 -10 ------- Run | Yrd Mat Min Sub Maximum Alert Level 1 | . 1 . . Low Security (%) 72 | 100 67 100 . Level 1 27 | . 32 . . Level 2 . | . . . . Level 3 . | . . . . Level 4 . | . . . . Level 5 . | . . . . High Security . | . . . . Max Security . | . . . . Peak Influence 287 | . 287 94 . Initial 94 | . . 94 . Average 86 | . 95 45 . Influence Increases 617 | . 561 1 55 Destroy 0b10 Robot/C 320 | . 280 . 40 Destroy 0b10 Robot/NC 20 | . 20 . . Destroy Leader 80 | . 80 . . Destroy Structure 2 | . 1 1 . Lose Combat Pursuer 195 | . 180 . 15 Influence Decreases 617 | . 318 244 55 Entered New Map 149 | . . 149 . Time Decay 428 | . 308 95 25 Lost Part 40 | . 10 . 30 Squads Dispatched 5 | . 5 . . Investigation 1 | . 1 . . Extermination . | . . . . Reinforcement 4 | . 4 . . Assault . | . . . . Garrison . | . . . . Intercept . | . . . . Searches Triggered . | . . . . Construction Impeded . | . . . . Haulers Reinforced . | . . . . Active Scanning Responses . | . . . . Cargo Convoy Interrupts . | . . . . Stealth | -11 -10 -10 -10 --------- Run | Yrd Mat Min Sub Distress Signals 2 | . 2 . . Communications Jammed . | . . . . Distress Signals . | . . . . Times Spotted 42 | . 36 . 6 Peak Tracking Total 5 | . 5 . 2 Tactical Retreats 8 | . 7 . 1 Traps | -11 -10 -10 -10 ------- Run | Yrd Mat Min Sub Traps Triggered 3 | . 3 . . Indirectly . | . . . . Trap Hack Attempts . | . . . . Triggered . | . . . . Disarmed . | . . . . Reprogrammed . | . . . . Reused . | . . . . Traps Extracted . | . . . . Installed . | . . . . Triggered . | . . . . Machines | -11 -10 -10 -10 ---------- Run | Yrd Mat Min Sub Machines Disabled . | . . . . Max in Single Turn . | . . . . Machines Repaired . | . . . . Machines Dismantled . | . . . . Machines Sabotaged . | . . . . Overloaded Fab Kills . | . . . . Hacking | -11 -10 -10 -10 --------- Run | Yrd Mat Min Sub Machines Accessed 1 | . . . 1 Terminals . | . . . . Fabricators . | . . . . Repair Stations . | . . . . Recycling Units . | . . . . Scanalyzers . | . . . . Garrison Access . | . . . . Total Hacks 4 | . . . 4 Successful 4 | . . . 4 Failed . | . . . . Catastrophic . | . . . . Database Lockouts . | . . . . Manual . | . . . . Terminals . | . . . . Fabricators . | . . . . Repair Stations . | . . . . Recycling Units . | . . . . Scanalyzers . | . . . . Garrison Access . | . . . . Terminal Hacks 4 | . . . 4 Record 4 | . . . 4 Fabricator Hacks . | . . . . Repair Station Hacks . | . . . . Recycling Unit Hacks . | . . . . Scanalyzer . | . . . . Garrison Access Hacks . | . . . . Unauthorized Hacks . | . . . . Terminals . | . . . . Fabricators . | . . . . Repair Stations . | . . . . Recycling Units . | . . . . Scanalyzers . | . . . . Garrison Access . | . . . . Data Cores Recovered . | . . . . Used . | . . . . Hacking Detections . | . . . . Full Trace Events . | . . . . Feedback Events . | . . . . Feedback Blocked . | . . . . Robot Schematics Acquired . | . . . . Robots Built . | . . . . Authchips . | . . . . Time . | . . . . Total Robot Build Rating . | . . . . Part Schematics Acquired . | . . . . Parts Built . | . . . . Authchips . | . . . . Time . | . . . . Total Part Build Rating . | . . . . Parts Repaired . | . . . . Time . | . . . . Parts Recycled . | . . . . Recycled Matter . | . . . . Retrieved Matter . | . . . . Retrieved Components . | . . . . Parts Scanalyzed . | . . . . Part Schematics Acquired . | . . . . Parts Damaged . | . . . . Bothacking | -11 -10 -10 -10 ------------ Run | Yrd Mat Min Sub Used RIF Installer . | . . . . Robots Hacked . | . . . . Non-combat . | . . . . Combat . | . . . . Robot Hacks Applied . | . . . . Relay Couplers Released . | . . . . Fabnet Peak Effective % . | . . . . Robots Rewired . | . . . . Allies Hacked . | . . . . Hacks Repelled . | . . . . Allies | -11 -10 -10 -10 -------- Run | Yrd Mat Min Sub Total Allies 1 | . . 1 . Largest Group 1 | . . 1 1 Highest-Rated Group 31 | . . 31 31 Highest-Rated Ally 31 | . . 31 31 Total Orders . | . . . . Ally Attacks . | . . . . Total Damage . | . . . . Kills . | . . . . Allies Corrupted . | . . . . Allies Melted . | . . . . Intel | -11 -10 -10 -10 ------- Run | Yrd Mat Min Sub Active Infowar (turns) . | . . . . Robot Analysis Total . | . . . . Derelict Logs Recovered 1 | . . 1 . Drone Launches . | . . . . Drone Recoveries . | . . . . Exploration | -11 -10 -10 -10 ------------- Run | Yrd Mat Min Sub Turns Passed 2504 | 70 1599 217 618 Spaces Moved 1226 | 41 756 122 307 Core 10 | 5 . . 5 Treads 1216 | 36 756 122 302 Legs . | . . . . Wheels . | . . . . Hover . | . . . . Flight . | . . . . Fastest Speed 50 | 50 160 160 160 Average Speed 159 | 146 160 160 161 Slowest Speed 250 | 160 160 160 250 Overloaded Moves . | . . . . Propulsion Burnouts . | . . . . Robots Hopped . | . . . . Potential Cave-ins . | . . . . Cave-ins Triggered . | . . . . Exploration Rate (%) 35 | 4 88 25 26 Regions Visited 3 Branch Regions 2 Pre-discovered Areas 1 | . . 1 . Known Exits Taken . | . . . . Unknown Exits Taken 3 | 1 1 1 . Scrap Searched . | . . . . Spaces Dug 1 | . . 1 . Terrain Destroyed 1 | . . 1 . Melee . | . . . . Projectile 1 | . . 1 . AOE . | . . . . Terrain Rammed . | . . . . Walls Destroyed . | . . . . Machines Disabled . | . . . . Actions | -11 -10 -10 -10 --------- Run | Yrd Mat Min Sub Total 1605 | 49 1046 140 370 Wait 249 | . 215 14 20 Move 1223 | 40 755 121 307 Hop . | . . . . Pick Up 12 | 3 6 1 2 Fast Attach 9 | 5 4 . . Attach 2 | 1 . . 1 Detach . | . . . . Swap 12 | . 5 2 5 Drop 5 | . 2 1 2 Fire 88 | . 54 1 33 Melee 2 | . 2 . . Ram . | . . . . Kick . | . . . . Crush 3 | . 3 . . Escape Stasis . | . . . . Rewire . | . . . . Trap . | . . . . Miscellaneous . | . . . . Route ------- -11/Scrapyard -10/Materials (discovered 4 exits: [*Mat x3] / [*Min]) -10/Mines (discovered 2 exits: [*Mat] / *Sub) -10/Subcaves (discovered 1 exit: Rec) History --------- Turn | Location | Event 12 | -11/Scrapyard | Discovered new exit (range 15) 71 | -11/Scrapyard | Entered Materials 300 | -10/Materials | Build established: Mutant 575 | -10/Materials | Discovered new exit (range 9) 644 | -10/Materials | Discovered new exit (range 5) 825 | -10/Materials | Discovered new exit (range 13) 1220 | -10/Materials | Discovered new exit (range 4) 1670 | -10/Materials | Entered Mines 1673 | -10/Mines | Received a Mining Laser from a helpful Derelict 1684 | -10/Mines | Met a Derelict bent on vengeance 1778 | -10/Mines | Discovered new exit (range 10) 1804 | -10/Mines | Learned location of Zion (-7) 1876 | -10/Mines | Discovered new exit (range 6) 1887 | -10/Mines | Entered Subcaves 1887 | -10/Subcaves | Accompanied by 1 ally 1888 | -10/Subcaves | Approached by a straggling Scientist 1970 | -10/Subcaves | Visited Clippyterm 1975 | -10/Subcaves | Identified exit to Recycling 2272 | -10/Subcaves | Shifting Twisted Machinery released Riot Gun 2386 | -10/Subcaves | Shifting Twisted Machinery released Sub. Power Source 2487 | -10/Subcaves | Core integrity fell below 50% 2490 | -10/Subcaves | Ambushed by angry Subdweller bent on revenge 2498 | -10/Subcaves | Lost 3 parts (2n1w) 2502 | -10/Subcaves | Core integrity fell below 20% 2505 | -10/Subcaves | Destroyed by VT-IXN(R) with Subdweller Machine Gun Last Messages --------------- Acquired Mining Laser. Acquired 11 matter. S-10 Pest destroyed. Destroyed Lgt. Ion Engine. S-10 Pest destroyed. TT-KMN(O) collects matter. X4-H26(c): "I think it's somewhere southeast of here" Lgt. Treads destroyed. Grenade Launcher destroyed. Lgt. Treads destroyed. SL-RDA(R) destroyed. 6W-2AE(R) affixes Scrap Shield Fragment to Scrap Shield. VT-IXN(R) angrily emerges from the Twisted Machinery. VT-IXN(R): "WEHOME!" 6W-2AE(R) destroyed. X4-H26(c): "I think it's somewhere southeast of here" Map ----- +----------------------------------------------------+ | ?????????????????????????????????????????????????? | | ?????????????????????????????????????????????????? | | ??????????????? ???????????????????????????????? | | ??????????????? ???????????????????????????????? | | ??????????????? ???????????????????????????????? | | ??????????????? ???????????????????????????????? | | ??????????????# ???####????????????????????????? | | ??????????????# #???%%"?????????????????????????? | | ??????????????# #?? =[??????????????????????????? | | ??????????????# ### ??????????????????????????? | | ?????????????? ???????????????????????????? | | ?????????????? ?????>??????????????????????? | | ??????????????# % ???????????? ???????????????? | | ##??????####### & ????????????? ???????????????? | | ## ????? # %#????????????? ##??????????????? | | ??????? !##??????????? ???????????????? | | ?????????? #??????????? ##??????????????? | | ???????????# #????######?? #??????????????? | | #???## ????## ##????# ###" #???????????????? | | #???# ???# #?????# ; "##??????????????? | | % #????# ?## #?????# * #??#???????????? | | ##????# ## ####### # ##&*="??????? | | ##????# [ ## # !&! &!%""??????? | | ##???## R =%* &!????????? | | #????# [" #???????????????? | | ###?####### " @ ;#???????????????? | | # ###%###### "" c ;#???????????????? | | % ## ##"### #??????????? | | ! ###### ;; ###??????????? | | !%& ### "## #"## "" ##" #####????????????? | | ##* "#?## "" # " ""####" #????????????????? | | ###""####"""""###### """"#???# #????????????????? | | #?#####"" """ ###""###" ""?? ????????????????? | | ##?????##"""" """" " ""? ##???????????????? | | ???????" """"" ###"# # ""##"#?# ????????????????? | | ??????" ""##?##???? #??#??#????????????????? | | ??????## #?????????????????????????????????? | | ???????## ##?????????????????????????????????? | | ????????#######??????????????????????????????????? | | ?????????????????????????????????????????????????? | | ?????????????????????????????????????????????????? | | ?????????????????????????????????????????????????? | | ?????????????????????????????????????????????????? | | ?????????????????????????????????????????????????? | | ?????????????????????????????????????????????????? | | ?????????????????????????????????????????????????? | | ?????????????????????????????????????????????????? | | ?????????????????????????????????????????????????? | | ?????????????????????????????????????????????????? | | ?????????????????????????????????????????????????? | +----------------------------------------------------+ Best States ------------- Heat Dissipation 25 Energy Generation 10 Energy Capacity 250 Matter Stores 300 Matter Capacity 300 Sight Range 16 Terrain Scan Density 10 Evasion (%) 40 Targeting Accuracy 5 Recoil Reduction 2 Item Schematics ----------------- None Robot Schematics ------------------ None Fabricated ------------ Nothing Repaired ---------- Nothing Alien Tech Used ----------------- None Achievements -------------- None Challenges ------------ None Game ------ Seed AblativeLinearProtection Manual? 0 Play Time 00:13:57 Cumulative 34.4 hours Start 2025.07.25 @ 20:38:29 End 2025.07.25 @ 20:52:43 Sessions 1 Manual Loads 0 Difficulty Rogue Special Mode None Game No. 61 Rogue 59 Adventurer 0 Explorer 2 Win Type - Total 0 Types 0/0/0/0/0/0/0/0/0/0 Lore% 32 Gallery% 27 Achievement% 29 Wizard Run 0 Options --------- Layout 1 ASCII 0 Keyboard 1 Movement Numpad Keybinds 0 Fullscreen 1 Font 24/Smallcaps Map View 50x40 Zoom Use 0% Tactical HUD 0 Map Filters NONE Filters NONE Steam 1 RUN: a7c4de3a-69b3-4af7-bcd4-924ed481979d